[Event "23rd ETCC Women 2021"]
[Site "Catez"]
[Date "2021.11.21"]
[Round "9.30"]
[White "Petrova, Kristyna"]
[Black "Mkrtchian, Lilit"]
[Result "0-1"]
[ECO "E46"]
[WhiteElo "2275"]
[BlackElo "2379"]
[Annotator "NA"]
[PlyCount "70"]
[EventDate "2021.11.08"]
[EventType "team-tourn"]
[EventCountry "SLO"]
[SourceTitle "playchess.com"]
[Source "ChessBase"]
[SourceQuality "1"]
[WhiteTeam "Czech Republic"]
[BlackTeam "Armenia"]
[WhiteTeamCountry "CZE"]
[BlackTeamCountry "ARM"]
[TimeControl "40/5400+30:1800+30"]

1. d4 {[%emt 0:00:04]} Nf6 {[%emt 0:00:42]} 2. c4 {[%emt 0:00:08]} e6 {[%emt 0:
00:15]} 3. Nc3 {[%emt 0:00:09]} Bb4 {[%emt 0:00:07]} 4. e3 {[%emt 0:00:12]} O-O
{[%emt 0:00:17]} 5. Nge2 {[%emt 0:00:14]} Re8 {[%emt 0:00:32]} 6. a3 {[%emt 0:
00:30]} Bf8 {[%emt 0:00:10]} 7. d5 {[%emt 0:00:41]} a5 {[%emt 0:00:27]} 8. g3 {
[%emt 0:00:39]} Na6 {[%emt 0:03:11]} 9. Bg2 {[%emt 0:02:09]} Nc5 {[%emt 0:00:
15]} 10. b3 {[%emt 0:08:46]} exd5 {[%emt 0:03:50]} 11. cxd5 {[%emt 0:01:21]} b6
{[%emt 0:00:35]} 12. O-O {[%emt 0:02:04]} Ba6 {[%emt 0:00:24]} 13. Ra2 {
[%emt 0:11:01]} Nd3 {[%emt 0:07:50]} 14. Bd2 {[%emt 0:06:05]} Rc8 {[%emt 0:02:
11]} 15. Nd4 {[%emt 0:07:31]} Bc5 {[%emt 0:05:18]} 16. Qb1 {[%emt 0:08:56]} Ne5
{[%emt 0:16:18]} 17. Rd1 {[%emt 0:04:46]} Bd3 {[%emt 0:04:15]} 18. Qa1 {
[%emt 0:02:26]} h5 {[%emt 0:03:18]} 19. Nf3 {[%emt 0:05:03]} Nxf3+ {[%emt 0:06:
50]} 20. Bxf3 {[%emt 0:00:06]} h4 {[%emt 0:00:12]} 21. Na4 {[%emt 0:05:10]} Be4
{[%emt 0:06:56]} 22. Bxe4 {[%emt 0:00:46]} Nxe4 {[%emt 0:00:05]} 23. Nxc5 {
[%emt 0:00:02]} Nxc5 {[%emt 0:07:59]} 24. b4 {[%emt 0:00:17]} axb4 {[%emt 0:00:
24]} 25. axb4 {[%emt 0:00:17]} Ne4 {[%emt 0:00:15]} 26. Be1 {[%emt 0:00:24]}
Qg5 {[%emt 0:00:40]} 27. Qb2 {[%emt 0:03:49]} hxg3 {[%emt 0:14:32]} 28. hxg3 {
[%emt 0:00:05]} f5 {[%emt 0:01:03]} 29. Kg2 {[%emt 0:10:05]} Kf7 {[%emt 0:03:
44]} 30. d6 {[%emt 0:05:17]} Rh8 {[%emt 0:07:35]} 31. dxc7 {[%emt 0:06:42]} Qh5
{[%emt 0:00:14]} 32. Rxd7+ {[%emt 0:00:57]} Ke6 {[%emt 0:00:21]} 33. Re7+ {
[%emt 0:01:45]} Kxe7 {[%emt 0:00:07]} 34. Qxg7+ {[%emt 0:00:03]} Ke6 {[%emt 0:
00:31]} 35. Kf1 {[%emt 0:00:12]} Qf3 {[%emt 0:00:42]} 0-1

[Event "23rd ETCC Women 2021"]
[Site "Catez"]
[Date "2021.11.21"]
[Round "9.31"]
[White "Gaboyan, Susanna"]
[Black "Miturova, Magdalena"]
[Result "1-0"]
[ECO "E05"]
[WhiteElo "2253"]
[BlackElo "2248"]
[Annotator "NA"]
[PlyCount "65"]
[EventDate "2021.11.08"]
[EventType "team-tourn"]
[EventCountry "SLO"]
[SourceTitle "playchess.com"]
[Source "ChessBase"]
[SourceQuality "1"]
[WhiteTeam "Armenia"]
[BlackTeam "Czech Republic"]
[WhiteTeamCountry "ARM"]
[BlackTeamCountry "CZE"]
[TimeControl "40/5400+30:1800+30"]

1. d4 {[%emt 0:00:04]} Nf6 {[%emt 0:00:07]} 2. g3 {[%emt 0:00:09]} e6 {[%emt 0:
00:34]} 3. Bg2 {[%emt 0:00:07]} d5 {[%emt 0:00:22]} 4. Nf3 {[%emt 0:00:18]} Be7
{[%emt 0:00:51]} 5. O-O {[%emt 0:00:10]} O-O {[%emt 0:00:20]} 6. c4 {[%emt 0:
00:11]} dxc4 {[%emt 0:00:13]} 7. Qc2 {[%emt 0:00:52]} b6 {[%emt 0:01:06]} 8.
Ne5 {[%emt 0:08:37]} Qxd4 {[%emt 0:03:15]} 9. Bxa8 {[%emt 0:03:45]} Qxe5 {
[%emt 0:00:07]} 10. Bf4 {[%emt 0:03:21]} Qh5 {[%emt 0:03:22]} 11. Bf3 {[%emt 0:
05:37]} Ng4 {[%emt 0:01:58]} 12. Bxg4 {[%emt 0:03:51]} Qxg4 {[%emt 0:00:03]}
13. f3 {[%emt 0:05:08]} Qh3 {[%emt 0:11:54]} 14. Nd2 {[%emt 0:05:06]} Bc5+ {
[%emt 0:08:04]} 15. Kh1 {[%emt 0:00:19]} e5 {[%emt 0:13:24]} 16. Bxe5 {[%emt 0:
15:35]} Re8 {[%emt 0:01:31]} 17. Nxc4 {[%emt 0:00:20]} Nc6 {[%emt 0:12:44]} 18.
Rfd1 {[%emt 0:21:28]} Re6 {[%emt 0:15:21]} 19. e4 {[%emt 0:11:42]} Ba6 {
[%emt 0:01:18]} 20. b4 {[%emt 0:04:10]} Bxb4 {[%emt 0:03:32]} 21. Bxc7 {
[%emt 0:01:45]} Qh5 {[%emt 0:05:29]} 22. Kg2 {[%emt 0:04:36]} Rh6 {[%emt 0:01:
26]} 23. h4 {[%emt 0:00:14]} g5 {[%emt 0:01:55]} 24. g4 {[%emt 0:01:11]} Qg6 {
[%emt 0:01:07]} 25. h5 {[%emt 0:02:57]} Qf6 {[%emt 0:00:54]} 26. e5 {[%emt 0:
01:16]} Qe6 {[%emt 0:01:23]} 27. Ne3 {[%emt 0:00:22]} Nxe5 {[%emt 0:04:13]} 28.
Nf5 {[%emt 0:00:11]} Nxg4 {[%emt 0:03:03]} 29. Rd8+ {[%emt 0:00:27]} Bf8 {
[%emt 0:00:02]} 30. fxg4 {[%emt 0:00:47]} Bb7+ {[%emt 0:01:31]} 31. Kh2 {
[%emt 0:00:07]} Rxh5+ {[%emt 0:02:54]} 32. gxh5 {[%emt 0:00:06]} Be4 {[%emt 0:
00:06]} 33. Re1 {[%emt 0:01:20]} 1-0

[Event "23rd ETCC Women 2021"]
[Site "Catez"]
[Date "2021.11.21"]
[Round "9.32"]
[White "Nemcova, Karin"]
[Black "Ghukasyan, Siranush"]
[Result "1-0"]
[ECO "C54"]
[WhiteElo "2169"]
[BlackElo "2168"]
[Annotator "NA"]
[PlyCount "81"]
[EventDate "2021.11.08"]
[EventType "team-tourn"]
[EventCountry "SLO"]
[SourceTitle "playchess.com"]
[Source "ChessBase"]
[SourceQuality "1"]
[WhiteTeam "Czech Republic"]
[BlackTeam "Armenia"]
[WhiteTeamCountry "CZE"]
[BlackTeamCountry "ARM"]
[TimeControl "40/5400+30:1800+30"]

1. e4 {[%emt 0:00:02]} e5 {[%emt 0:00:05]} 2. Nf3 {[%emt 0:00:07]} Nc6 {
[%emt 0:00:07]} 3. Bc4 {[%emt 0:00:05]} Bc5 {[%emt 0:00:04]} 4. c3 {[%emt 0:00:
07]} Nf6 {[%emt 0:00:03]} 5. d3 {[%emt 0:00:06]} d6 {[%emt 0:00:05]} 6. Bg5 {
[%emt 0:00:07]} h6 {[%emt 0:00:46]} 7. Bh4 {[%emt 0:00:05]} g5 {[%emt 0:03:17]}
8. Bg3 {[%emt 0:00:07]} a6 {[%emt 0:05:33]} 9. Nbd2 {[%emt 0:01:05]} Ba7 {
[%emt 0:00:12]} 10. a4 {[%emt 0:00:23]} O-O {[%emt 0:01:39]} 11. O-O {[%emt 0:
00:39]} Re8 {[%emt 0:01:42]} 12. Re1 {[%emt 0:03:16]} Qe7 {[%emt 0:05:46]} 13.
b4 {[%emt 0:02:16]} Qf8 {[%emt 0:14:40]} 14. b5 {[%emt 0:04:20]} Ne7 {[%emt 0:
00:05]} 15. Nf1 {[%emt 0:21:08]} Ng6 {[%emt 0:00:56]} 16. Ne3 {[%emt 0:00:17]}
Nf4 {[%emt 0:07:11]} 17. Bxf4 {[%emt 0:10:43]} gxf4 {[%emt 0:03:09]} 18. Nd5 {
[%emt 0:01:45]} Nxd5 {[%emt 0:01:48]} 19. Bxd5 {[%emt 0:00:09]} Rb8 {[%emt 0:
01:31]} 20. Nh4 {[%emt 0:04:00]} Be6 {[%emt 0:03:13]} 21. c4 {[%emt 0:04:27]}
Bd7 {[%emt 0:03:19]} 22. Qh5 {[%emt 0:05:04]} Qg7 {[%emt 0:00:21]} 23. Nf5 {
[%emt 0:00:50]} Bxf5 {[%emt 0:00:05]} 24. exf5 {[%emt 0:00:15]} Rf8 {[%emt 0:
01:15]} 25. Ra2 {[%emt 0:05:01]} Kh8 {[%emt 0:01:16]} 26. h4 {[%emt 0:08:07]}
Bd4 {[%emt 0:08:10]} 27. Kh1 {[%emt 0:01:28]} c6 {[%emt 0:03:18]} 28. bxc6 {
[%emt 0:01:11]} bxc6 {[%emt 0:00:02]} 29. Bxc6 {[%emt 0:00:09]} Rb3 {[%emt 0:
00:04]} 30. Be4 {[%emt 0:04:33]} Rg8 {[%emt 0:01:41]} 31. g4 {[%emt 0:01:12]}
fxg3 {[%emt 0:09:52]} 32. fxg3 {[%emt 0:00:26]} Rgb8 {[%emt 0:02:39]} 33. g4 {
[%emt 0:02:56]} Rb1 {[%emt 0:01:12]} 34. Rxb1 {[%emt 0:01:51]} Rxb1+ {[%emt 0:
00:03]} 35. Kh2 {[%emt 0:00:10]} f6 {[%emt 0:02:44]} 36. Bd5 {[%emt 0:09:20]}
e4 {[%emt 0:03:34]} 37. Qe8+ {[%emt 0:02:03]} Kh7 {[%emt 0:00:02]} 38. Qxe4 {
[%emt 0:03:24]} Be5+ {[%emt 0:00:06]} 39. Kg2 {[%emt 0:01:03]} Qa7 {[%emt 0:01:
24]} 40. d4 {[%emt 0:03:07]} Rc1 {[%emt 0:03:09]} 41. c5 {[%emt 0:31:19]} 1-0

[Event "23rd ETCC Women 2021"]
[Site "Catez"]
[Date "2021.11.21"]
[Round "9.33"]
[White "Bulmaga, Irina"]
[Black "Vega Gutierrez, Sabrina"]
[Result "1-0"]
[ECO "B22"]
[WhiteElo "2405"]
[BlackElo "2394"]
[Annotator "NA"]
[PlyCount "149"]
[EventDate "2021.11.08"]
[EventType "team-tourn"]
[EventCountry "SLO"]
[SourceTitle "playchess.com"]
[Source "ChessBase"]
[SourceQuality "1"]
[WhiteTeam "Romania"]
[BlackTeam "Spain"]
[WhiteTeamCountry "ROU"]
[BlackTeamCountry "ESP"]
[TimeControl "40/5400+30:1800+30"]

1. e4 {[%emt 0:00:04]} c5 {[%emt 0:00:05]} 2. Nf3 {[%emt 0:00:08]} e6 {[%emt 0:
00:08]} 3. c3 {[%emt 0:00:09]} Nf6 {[%emt 0:00:22]} 4. e5 {[%emt 0:00:10]} Nd5
{[%emt 0:00:06]} 5. d4 {[%emt 0:00:06]} cxd4 {[%emt 0:00:06]} 6. cxd4 {[%emt 0:
00:06]} d6 {[%emt 0:00:18]} 7. Bc4 {[%emt 0:00:14]} Be7 {[%emt 0:00:25]} 8. O-O
{[%emt 0:00:18]} O-O {[%emt 0:00:15]} 9. Qe2 {[%emt 0:00:18]} b6 {[%emt 0:00:
25]} 10. Rd1 {[%emt 0:00:45]} Bb7 {[%emt 0:00:34]} 11. Bxd5 {[%emt 0:00:31]}
exd5 {[%emt 0:00:30]} 12. Nc3 {[%emt 0:00:20]} Na6 {[%emt 0:00:31]} 13. Nb5 {
[%emt 0:00:37]} Nc7 {[%emt 0:03:05]} 14. Nxc7 {[%emt 0:00:50]} Qxc7 {[%emt 0:
00:07]} 15. Bg5 {[%emt 0:00:19]} f6 {[%emt 0:11:35]} 16. exf6 {[%emt 0:02:53]}
Bxf6 {[%emt 0:00:25]} 17. Qe6+ {[%emt 0:04:46]} Kh8 {[%emt 0:00:43]} 18. Rac1 {
[%emt 0:00:58]} Qd8 {[%emt 0:00:32]} 19. Bxf6 {[%emt 0:06:43]} Rxf6 {[%emt 0:
00:16]} 20. Qe3 {[%emt 0:01:44]} Bc8 {[%emt 0:14:25]} 21. Re1 {[%emt 0:02:38]}
Bg4 {[%emt 0:01:36]} 22. Nd2 {[%emt 0:04:10]} Re6 {[%emt 0:01:58]} 23. Qf4 {
[%emt 0:05:49]} Qe7 {[%emt 0:11:35]} 24. Rxe6 {[%emt 0:01:57]} Qxe6 {[%emt 0:
01:06]} 25. Nf1 {[%emt 0:00:13]} Qd7 {[%emt 0:08:21]} 26. h3 {[%emt 0:03:28]}
Be6 {[%emt 0:01:18]} 27. Rc3 {[%emt 0:01:10]} Kg8 {[%emt 0:04:29]} 28. Qc1 {
[%emt 0:03:44]} Qa4 {[%emt 0:04:21]} 29. Qe3 {[%emt 0:00:29]} Re8 {[%emt 0:03:
19]} 30. b3 {[%emt 0:01:16]} Qd7 {[%emt 0:01:04]} 31. Qc1 {[%emt 0:04:30]} Re7
{[%emt 0:00:07]} 32. Re3 {[%emt 0:00:39]} h6 {[%emt 0:13:27]} 33. Qe1 {[%emt 0:
00:25]} Re8 {[%emt 0:04:36]} 34. Ng3 {[%emt 0:01:42]} Qf7 {[%emt 0:02:27]} 35.
Nf1 {[%emt 0:05:19]} Qg6 {[%emt 0:06:47]} 36. Nd2 {[%emt 0:01:19]} Kh7 {
[%emt 0:02:11]} 37. Kh1 {[%emt 0:02:04]} Qf6 {[%emt 0:02:54]} 38. Nf3 {[%emt 0:
02:00]} Kg8 {[%emt 0:00:37]} 39. Qe2 {[%emt 0:02:28]} Re7 {[%emt 0:00:58]} 40.
Ne1 {[%emt 0:00:27]} Kh8 {[%emt 0:01:37]} 41. Nc2 {[%emt 0:33:56]} Re8 {
[%emt 0:05:39]} 42. a3 {[%emt 0:00:00]} Qg6 {[%emt 0:06:04]} 43. Nb4 {[%emt 0:
00:00]} Bf7 {[%emt 0:04:33]} 44. Rxe8+ {[%emt 0:00:00]} Bxe8 {[%emt 0:00:02]}
45. Qe7 {[%emt 0:00:00]} Qe4 {[%emt 0:16:07]} 46. Qxd6 {[%emt 0:00:00]} Qe1+ {
[%emt 0:00:42]} 47. Kh2 {[%emt 0:00:00]} Qxf2 {[%emt 0:00:14]} 48. Qb8 {
[%emt 0:00:00]} Qf7 {[%emt 0:00:27]} 49. Qe5 {[%emt 0:00:00]} a5 {[%emt 0:00:
55]} 50. Nxd5 {[%emt 0:00:00]} b5 {[%emt 0:00:34]} 51. Nc7 {[%emt 0:00:00]} Bd7
{[%emt 0:00:15]} 52. d5 {[%emt 0:00:00]} Qf2 {[%emt 0:00:35]} 53. Ne6 {[%emt 0:
00:00]} Qf7 {[%emt 0:00:09]} 54. Nc5 {[%emt 0:00:00]} Be8 {[%emt 0:00:40]} 55.
b4 {[%emt 0:00:00]} axb4 {[%emt 0:00:32]} 56. axb4 {[%emt 0:00:00]} Qg6 {
[%emt 0:00:39]} 57. Ne6 {[%emt 0:00:00]} Bd7 {[%emt 0:00:40]} 58. Qb8+ {
[%emt 0:06:19]} Be8 {[%emt 0:00:02]} 59. Nc7 {[%emt 0:03:36]} Qd6+ {[%emt 0:00:
03]} 60. Kg1 {[%emt 0:02:23]} Kh7 {[%emt 0:00:05]} 61. Qxe8 {[%emt 0:00:18]}
Qxc7 {[%emt 0:00:07]} 62. Qxb5 {[%emt 0:00:46]} Qc3 {[%emt 0:00:25]} 63. Kf2 {
[%emt 0:03:22]} Qd4+ {[%emt 0:01:49]} 64. Kf3 {[%emt 0:00:16]} Qf6+ {[%emt 0:
00:41]} 65. Ke3 {[%emt 0:02:51]} Qe5+ {[%emt 0:00:42]} 66. Kd3 {[%emt 0:00:21]}
Qg3+ {[%emt 0:00:36]} 67. Kc4 {[%emt 0:01:00]} Qxg2 {[%emt 0:00:16]} 68. Qd7 {
[%emt 0:03:22]} Qc2+ {[%emt 0:00:10]} 69. Kb5 {[%emt 0:00:32]} Qd3+ {[%emt 0:
00:12]} 70. Kb6 {[%emt 0:00:37]} Qd4+ {[%emt 0:00:17]} 71. Ka5 {[%emt 0:00:02]}
Qa1+ {[%emt 0:00:37]} 72. Kb5 {[%emt 0:00:14]} Qf1+ {[%emt 0:01:08]} 73. Kb6 {
[%emt 0:00:06]} Qf2+ {[%emt 0:00:49]} 74. Kb7 {[%emt 0:00:09]} Qd4 {[%emt 0:00:
31]} 75. b5 {[%emt 0:00:09]} 1-0

[Event "23rd ETCC Women 2021"]
[Site "Catez"]
[Date "2021.11.21"]
[Round "9.34"]
[White "Garcia Martin, Marta"]
[Black "Peptan, Corina-Isabela"]
[Result "1/2-1/2"]
[ECO "B13"]
[WhiteElo "2324"]
[BlackElo "2385"]
[Annotator "NA"]
[PlyCount "114"]
[EventDate "2021.11.08"]
[EventType "team-tourn"]
[EventCountry "SLO"]
[SourceTitle "playchess.com"]
[Source "ChessBase"]
[SourceQuality "1"]
[WhiteTeam "Spain"]
[BlackTeam "Romania"]
[WhiteTeamCountry "ESP"]
[BlackTeamCountry "ROU"]
[TimeControl "40/5400+30:1800+30"]

1. e4 {[%emt 0:00:04]} c6 {[%emt 0:00:18]} 2. d4 {[%emt 0:00:27]} d5 {[%emt 0:
00:13]} 3. exd5 {[%emt 0:00:39]} cxd5 {[%emt 0:00:02]} 4. Nf3 {[%emt 0:00:10]}
Nc6 {[%emt 0:00:15]} 5. Bb5 {[%emt 0:00:31]} e6 {[%emt 0:01:05]} 6. Ne5 {
[%emt 0:01:16]} Bd7 {[%emt 0:00:11]} 7. Nxd7 {[%emt 0:00:07]} Qxd7 {[%emt 0:00:
04]} 8. c3 {[%emt 0:02:47]} Nf6 {[%emt 0:00:13]} 9. O-O {[%emt 0:00:14]} Bd6 {
[%emt 0:00:21]} 10. Nd2 {[%emt 0:00:25]} O-O {[%emt 0:00:51]} 11. Re1 {[%emt 0:
00:59]} Qc7 {[%emt 0:00:42]} 12. g3 h6 {[%emt 0:10:48]} 13. Bd3 {[%emt 0:13:55]
} e5 {[%emt 0:06:41]} 14. dxe5 {[%emt 0:00:05]} Nxe5 {[%emt 0:00:07]} 15. Nf3 {
[%emt 0:00:09]} Nxd3 {[%emt 0:00:53]} 16. Qxd3 {[%emt 0:00:06]} Rfe8 {[%emt 0:
02:39]} 17. Be3 {[%emt 0:02:46]} a6 {[%emt 0:03:22]} 18. Qf5 {[%emt 0:24:38]}
Qc8 {[%emt 0:04:44]} 19. Nd4 {[%emt 0:06:10]} Re5 {[%emt 0:04:18]} 20. Qxc8+ {
[%emt 0:00:36]} Rxc8 {[%emt 0:00:03]} 21. Red1 {[%emt 0:08:45]} Bc5 {[%emt 0:
12:23]} 22. Nc2 {[%emt 0:02:22]} Bxe3 {[%emt 0:22:12]} 23. Nxe3 {[%emt 0:00:06]
} Rc5 {[%emt 0:00:04]} 24. Rd3 {[%emt 0:03:37]} Rb5 {[%emt 0:03:33]} 25. b4 {
[%emt 0:03:14]} Rb6 {[%emt 0:08:26]} 26. a4 {[%emt 0:11:24]} Rc6 {[%emt 0:00:
39]} 27. f3 {[%emt 0:05:40]} Re7 {[%emt 0:02:33]} 28. Kf2 {[%emt 0:01:05]} Rec7
{[%emt 0:00:10]} 29. Ra3 {[%emt 0:00:25]} Rd7 {[%emt 0:05:06]} 30. a5 {[%emt 0:
06:37]} g6 {[%emt 0:00:47]} 31. g4 {[%emt 0:00:25]} Kf8 {[%emt 0:09:57]} 32. h4
{[%emt 0:00:38]} Rcd6 {[%emt 0:00:01]} 33. Rd4 {[%emt 0:01:19]} h5 {[%emt 0:02:
07]} 34. g5 {[%emt 0:00:39]} Ne8 {[%emt 0:00:01]} 35. Ra1 {[%emt 0:00:31]} Nc7
{[%emt 0:00:02]} 36. Rad1 {[%emt 0:00:07]} Ke7 {[%emt 0:00:09]} 37. f4 {
[%emt 0:01:13]} Nb5 {[%emt 0:01:26]} 38. Rxd5 {[%emt 0:04:37]} Nxc3 {[%emt 0:
00:15]} 39. Re5+ {[%emt 0:00:37]} Re6 {[%emt 0:01:16]} 40. Rxe6+ {[%emt 0:00:
26]} Kxe6 {[%emt 0:00:03]} 41. Re1 {[%emt 0:10:33]} Rd2+ {[%emt 0:30:30]} 42.
Kf3 {[%emt 0:00:30]} Rd3 {[%emt 0:00:30]} 43. Kg2 {[%emt 0:11:31]} Ne4 {
[%emt 0:00:00]} 44. Kf3 {[%emt 0:02:39]} f5 {[%emt 0:00:00]} 45. gxf6 {[%emt 0:
01:08]} Nxf6 {[%emt 0:00:00]} 46. Kg2 {[%emt 0:03:34]} Ne4 {[%emt 0:00:00]} 47.
Kf3 {[%emt 0:00:45]} Nc3 {[%emt 0:00:00]} 48. Kf2 {[%emt 0:03:19]} Kf6 {
[%emt 0:00:00]} 49. Rc1 {[%emt 0:00:31]} Ne4+ {[%emt 0:00:00]} 50. Kf3 {
[%emt 0:00:36]} Nd6 {[%emt 0:00:00]} 51. Ke2 {[%emt 0:00:04]} Rd4 {[%emt 0:00:
00]} 52. Rc5 {[%emt 0:00:04]} Ke6 {[%emt 0:05:02]} 53. Rg5 {[%emt 0:01:13]}
Rxf4 {[%emt 0:00:19]} 54. Rxg6+ {[%emt 0:00:04]} Kd7 {[%emt 0:00:24]} 55. Rg7+
{[%emt 0:01:03]} Kc6 {[%emt 0:00:20]} 56. Rg6 {[%emt 0:00:04]} Kd7 {[%emt 0:01:
16]} 57. Rg7+ {[%emt 0:00:02]} Kc6 {[%emt 0:00:23]} 1/2-1/2

[Event "23rd ETCC Women 2021"]
[Site "Catez"]
[Date "2021.11.21"]
[Round "9.35"]
[White "Sandu, Mihaela"]
[Black "Eizaguerri Floris, Maria"]
[Result "1-0"]
[ECO "B92"]
[WhiteElo "2244"]
[BlackElo "2328"]
[Annotator "NA"]
[PlyCount "109"]
[EventDate "2021.11.08"]
[EventType "team-tourn"]
[EventCountry "SLO"]
[SourceTitle "playchess.com"]
[Source "ChessBase"]
[SourceQuality "1"]
[WhiteTeam "Romania"]
[BlackTeam "Spain"]
[WhiteTeamCountry "ROU"]
[BlackTeamCountry "ESP"]
[TimeControl "40/5400+30:1800+30"]

1. e4 {[%emt 0:00:05]} c5 {[%emt 0:00:07]} 2. Nf3 {[%emt 0:00:04]} d6 {[%emt 0:
00:06]} 3. d4 {[%emt 0:00:58]} cxd4 {[%emt 0:00:05]} 4. Nxd4 {[%emt 0:00:02]}
Nf6 {[%emt 0:00:07]} 5. Nc3 {[%emt 0:00:04]} a6 {[%emt 0:00:07]} 6. Be2 {
[%emt 0:00:06]} e5 {[%emt 0:00:05]} 7. Nf3 {[%emt 0:00:23]} Be7 {[%emt 0:01:13]
} 8. O-O {[%emt 0:00:23]} O-O {[%emt 0:00:04]} 9. Bg5 {[%emt 0:02:41]} Nbd7 {
[%emt 0:05:18]} 10. Bc4 {[%emt 0:07:23]} b5 {[%emt 0:10:34]} 11. Bb3 {[%emt 0:
02:32]} Bb7 {[%emt 0:03:39]} 12. Re1 {[%emt 0:01:53]} Rc8 {[%emt 0:03:15]} 13.
Re2 {[%emt 0:06:09]} Rc7 {[%emt 0:14:46]} 14. Bxf6 {[%emt 0:27:15]} Nxf6 {
[%emt 0:00:05]} 15. Nd5 {[%emt 0:00:15]} Nxd5 {[%emt 0:02:23]} 16. Bxd5 {
[%emt 0:00:04]} Bxd5 {[%emt 0:03:35]} 17. Qxd5 {[%emt 0:00:05]} Qc8 {[%emt 0:
02:04]} 18. c3 {[%emt 0:06:29]} Rc5 {[%emt 0:01:58]} 19. Qb3 {[%emt 0:04:35]}
Qc7 {[%emt 0:04:30]} 20. Ne1 {[%emt 0:03:57]} Rc4 {[%emt 0:04:30]} 21. Nd3 {
[%emt 0:00:17]} Qb7 {[%emt 0:08:22]} 22. Nb4 {[%emt 0:07:49]} Bg5 {[%emt 0:13:
04]} 23. Nd5 {[%emt 0:00:40]} f5 {[%emt 0:01:35]} 24. f3 {[%emt 0:02:52]} fxe4
{[%emt 0:04:58]} 25. fxe4 {[%emt 0:00:05]} Qa7+ {[%emt 0:00:20]} 26. Kh1 {
[%emt 0:00:07]} Kh8 {[%emt 0:01:45]} 27. Qd1 {[%emt 0:01:25]} Rf7 {[%emt 0:02:
20]} 28. Qg1 {[%emt 0:00:56]} Qxg1+ {[%emt 0:01:48]} 29. Kxg1 {[%emt 0:00:12]}
Rc8 {[%emt 0:03:35]} 30. a4 {[%emt 0:03:57]} h5 {[%emt 0:03:18]} 31. g3 {
[%emt 0:00:40]} h4 {[%emt 0:02:03]} 32. Kg2 {[%emt 0:00:07]} Rcf8 {[%emt 0:00:
34]} 33. axb5 {[%emt 0:01:27]} axb5 {[%emt 0:00:05]} 34. Ra6 {[%emt 0:00:28]}
h3+ {[%emt 0:03:32]} 35. Kxh3 {[%emt 0:00:20]} Rf2 {[%emt 0:00:05]} 36. Rxf2 {
[%emt 0:00:23]} Rxf2 {[%emt 0:00:01]} 37. b4 {[%emt 0:01:18]} Re2 {[%emt 0:01:
05]} 38. Kg4 {[%emt 0:00:48]} Bh6 {[%emt 0:01:27]} 39. Kf3 {[%emt 0:02:30]}
Rxh2 {[%emt 0:00:12]} 40. Rb6 {[%emt 0:00:32]} Rc2 {[%emt 0:00:37]} 41. Rxb5 {
[%emt 0:30:09]} Bd2 {[%emt 0:02:40]} 42. Rb8+ {[%emt 0:00:00]} Kh7 {[%emt 0:00:
04]} 43. b5 {[%emt 0:00:00]} Rb2 {[%emt 0:02:01]} 44. c4 {[%emt 0:00:00]} Be1 {
[%emt 0:04:48]} 45. Rd8 {[%emt 0:00:00]} Rb3+ {[%emt 0:08:21]} 46. Ke2 {
[%emt 0:00:00]} Bxg3 {[%emt 0:00:08]} 47. Rxd6 {[%emt 0:00:00]} Rb2+ {[%emt 0:
00:13]} 48. Kd3 {[%emt 0:00:00]} Bf2 {[%emt 0:00:30]} 49. b6 {[%emt 0:00:00]}
g5 {[%emt 0:05:03]} 50. Rc6 {[%emt 0:07:43]} Kg7 {[%emt 0:02:00]} 51. c5 {
[%emt 0:00:20]} g4 {[%emt 0:01:07]} 52. Rc7+ {[%emt 0:08:25]} Kg6 {[%emt 0:04:
32]} 53. b7 {[%emt 0:00:20]} Bxc5 {[%emt 0:01:41]} 54. Rc6+ {[%emt 0:00:44]}
Kg5 {[%emt 0:01:02]} 55. Nb6 {[%emt 0:00:19]} 1-0

[Event "23rd ETCC Women 2021"]
[Site "Catez"]
[Date "2021.11.21"]
[Round "9.36"]
[White "Calzetta Ruiz, Monica"]
[Black "Ciolacu, Alessia-Mihaela"]
[Result "0-1"]
[ECO "C77"]
[WhiteElo "2201"]
[BlackElo "2263"]
[Annotator "NA"]
[PlyCount "136"]
[EventDate "2021.11.08"]
[EventType "team-tourn"]
[EventCountry "SLO"]
[SourceTitle "playchess.com"]
[Source "ChessBase"]
[SourceQuality "1"]
[WhiteTeam "Spain"]
[BlackTeam "Romania"]
[WhiteTeamCountry "ESP"]
[BlackTeamCountry "ROU"]
[TimeControl "40/5400+30:1800+30"]

1. e4 e5 2. Nf3 Nc6 3. Bb5 a6 4. Ba4 {[%emt 1:02:38]} Nf6 5. d3 {[%emt 0:00:30]
} Bc5 6. Nc3 {[%emt 0:00:30]} h6 7. Bxc6 {[%emt 0:00:30]} dxc6 8. Nxe5 {
[%emt 0:00:30]} Bxf2+ 9. Kxf2 {[%emt 0:00:30]} Qd4+ 10. Be3 {[%emt 0:00:30]}
Qxe5 11. h3 {[%emt 0:00:30]} Be6 12. Qf3 {[%emt 0:00:30]} c5 13. Qf4 {[%emt 0:
00:30]} Qxf4+ 14. Bxf4 {[%emt 0:00:30]} O-O-O 15. b3 {[%emt 0:00:30]} Ng8 16.
Rhf1 {[%emt 0:00:30]} Ne7 17. Kg1 {[%emt 0:00:30]} Nc6 18. Rf2 {[%emt 0:00:30]}
b6 19. Raf1 {[%emt 0:00:30]} Rd7 20. Nd1 {[%emt 0:00:30]} Rhd8 21. Ne3 {
[%emt 0:00:30]} b5 {[%emt 1:11:10]} 22. Bg3 {[%emt 0:00:30]} f6 {[%emt 0:00:30]
} 23. Kh2 {[%emt 0:00:30]} c4 {[%emt 0:00:30]} 24. bxc4 {[%emt 0:00:30]} bxc4 {
[%emt 0:00:30]} 25. dxc4 {[%emt 0:00:30]} Rd4 {[%emt 0:00:30]} 26. Nd5 {
[%emt 0:00:30]} Rd7 {[%emt 0:00:30]} 27. e5 {[%emt 0:00:30]} fxe5 {[%emt 0:00:
30]} 28. Rf8+ {[%emt 0:00:30]} Rd8 {[%emt 0:00:30]} 29. Rxd8+ {[%emt 0:00:30]}
Kxd8 {[%emt 0:00:30]} 30. Re1 {[%emt 0:00:30]} Rxc4 {[%emt 0:00:30]} 31. Ne3 {
[%emt 0:00:30]} Ra4 {[%emt 0:00:30]} 32. Rd1+ {[%emt 0:00:30]} Ke7 {[%emt 0:00:
30]} 33. Nd5+ {[%emt 0:00:30]} Bxd5 {[%emt 0:00:30]} 34. Rxd5 {[%emt 0:00:30]}
Ke6 35. Rc5 {[%emt 0:00:30]} Kd6 {[%emt 0:01:00]} 36. Rc3 {[%emt 0:00:30]} Rxa2
37. Rd3+ Ke6 38. Rc3 {[%emt 0:01:00]} Kd7 39. Rd3+ Kc8 40. Rc3 {[%emt 0:01:00]}
Kd7 41. Rd3+ {[%emt 0:00:01]} Ke6 42. Rc3 {[%emt 0:30:59]} Kd5 {[%emt 0:33:30]}
43. Rd3+ {[%emt 0:03:25]} Nd4 {[%emt 0:04:04]} 44. c3 {[%emt 0:01:41]} Ke4 {
[%emt 0:00:35]} 45. Rd1 {[%emt 0:00:40]} Ne2 {[%emt 0:01:33]} 46. Rd7 {[%emt 0:
03:53]} Nxg3 {[%emt 0:01:05]} 47. Kxg3 {[%emt 0:00:04]} c5 {[%emt 0:02:59]} 48.
Rxg7 {[%emt 0:00:21]} Kd3 {[%emt 0:06:04]} 49. Rg6 {[%emt 0:01:21]} e4 {
[%emt 0:08:47]} 50. Rxh6 {[%emt 0:01:14]} e3 {[%emt 0:01:11]} 51. h4 {[%emt 0:
00:58]} Ra1 {[%emt 0:01:22]} 52. Rd6+ {[%emt 0:02:43]} Ke2 {[%emt 0:01:28]} 53.
h5 {[%emt 0:00:57]} Rh1 {[%emt 0:01:14]} 54. Rxa6 {[%emt 0:06:40]} Rxh5 {
[%emt 0:00:11]} 55. Re6 {[%emt 0:02:07]} Rf5 {[%emt 0:00:28]} 56. c4 {[%emt 0:
01:29]} Kd2 {[%emt 0:00:24]} 57. Rd6+ {[%emt 0:00:33]} Ke1 {[%emt 0:00:48]} 58.
Kg4 {[%emt 0:04:22]} Rf8 {[%emt 0:01:14]} 59. Rd5 {[%emt 0:02:35]} e2 {[%emt 0:
00:14]} 60. Rxc5 {[%emt 0:00:09]} Kf1 {[%emt 0:00:17]} 61. Re5 {[%emt 0:00:55]}
e1=Q {[%emt 0:00:09]} 62. Rxe1+ {[%emt 0:00:04]} Kxe1 {[%emt 0:00:06]} 63. Kh5
{[%emt 0:01:05]} Kf2 {[%emt 0:01:30]} 64. g4 {[%emt 0:00:02]} Kf3 {[%emt 0:00:
21]} 65. g5 {[%emt 0:00:05]} Kf4 {[%emt 0:00:11]} 66. Kh6 {[%emt 0:00:46]} Rg8
{[%emt 0:00:10]} 67. g6 {[%emt 0:01:40]} Kf5 {[%emt 0:00:07]} 68. g7 {[%emt 0:
00:29]} Kf6 {[%emt 0:00:07]} 0-1